[Event "27th CRO-chT Women 2018"]
[Site "Biograd"]
[Date "2018.09.12"]
[Round "6.1"]
[White "Ivekovic, Ana"]
[Black "Rozman, Monika"]
[Result "1/2-1/2"]
[ECO "A07"]
[WhiteElo "2118"]
[BlackElo "2037"]
[Annotator "NA"]
[PlyCount "69"]
[EventDate "2018.09.08"]
[EventType "team-tourn"]
[EventCountry "CRO"]
[SourceTitle "playchess.com"]
[Source "ChessBase"]
[SourceQuality "1"]
[TimeControl "40/5400+30:1800+30"]

1. Nf3 {[%emt 0:00:30]} Nf6 {[%emt 0:00:30]} 2. g3 {[%emt 0:00:30]} d5 {[%emt 0:00:30]} 3. b3 {[%emt 0:00:30]} Bf5 {[%emt 0:02:30]} 4. Bb2 {[%emt 0:01:30]} Nbd7 {[%emt 0:00:30]} 5. Bg2 {[%emt 0:01:30]} c6 {[%emt 0:00:00]} 6. O-O {[%emt 0:02:30]} Qc7 {[%emt 0:02:00]} 7. Nh4 {[%emt 0:09:30]} Be4 {[%emt 0:05:30]} 8. Bxe4 {[%emt 0:08:30]} Nxe4 {[%emt 0:02:30]} 9. d3 {[%emt 0:00:30]} Nef6 {[%emt 0:00:30]} 10. Nd2 {[%emt 0:02:30]} e6 {[%emt 0:03:30]} 11. e4 {[%emt 0:02:30]} Be7 {[%emt 0:05:30]} 12. Qe2 {[%emt 0:01:30]} h5 {[%emt 0:03:30]} 13. c4 {[%emt 0:05:30]} dxe4 {[%emt 0:06:30]} 14. dxe4 {[%emt 0:04:30]} O-O-O {[%emt 0:07:30]} 15. e5 {[%emt 0:07:30]} Ng4 {[%emt 0:01:30]} 16. Nhf3 {[%emt 0:01:30]} h4 {[%emt 0:09:30]} 17. h3 {[%emt 0:04:30]} Nxf2 {[%emt 0:00:30]} 18. Kxf2 {[%emt 0:07:30]} hxg3+ {[%emt 0:06:30]} 19. Kg2 {[%emt 0:02:30]} Rh5 {[%emt 0:04:30]} 20. Ne4 {[%emt 0:02:30]} Rdh8 {[%emt 0:04:30]} 21. Nxg3 {[%emt 0:02:30]} Rxh3 {[%emt 0:01:30]} 22. Rh1 {[%emt 0:01:30]} Rxh1 {[%emt 0:01:30]} 23. Rxh1 {[%emt 0:01:30]} Rxh1 {[%emt 0:00:00]} 24. Nxh1 {[%emt 0:02:30]} Nf8 {[%emt 0:09:00]} 25. Bc3 {[%emt 0:05:30]} f5 {[%emt 0:01:30]} 26. Qf2 {[%emt 0:04:19]} Kb8 {[%emt 0:10:08]} 27. Qg3 {[%emt 0:02:33]} Bd8 {[%emt 0:01:05]} 28. Nf2 {[%emt 0:02:35]} Qf7 {[%emt 0:01:02]} 29. Ng5 {[%emt 0:06:47]} Qh5 {[%emt 0:02:15]} 30. Nfh3 {[%emt 0:01:54]} Qe2+ {[%emt 0:03:18]} 31. Qf2 {[%emt 0:00:52]} Qg4+ {[%emt 0:00:04]} 32. Qg3 {[%emt 0:00:17]} Qe2+ {[%emt 0:00:20]} 33. Qf2 {[%emt 0:01:23]} Qg4+ {[%emt 0:00:04]} 34. Qg3 {[%emt 0:00:09]} Qe2+ {[%emt 0:05:33]} 35. Qf2 {[%emt 0:00:39]} 1/2-1/2

[Event "27th CRO-chT Women 2018"]
[Site "Biograd"]
[Date "2018.09.12"]
[Round "6.2"]
[White "Blazeka, Mihaela"]
[Black "Spiranec, Noemi"]
[Result "1-0"]
[ECO "A31"]
[WhiteElo "2048"]
[BlackElo "2035"]
[Annotator "NA"]
[PlyCount "59"]
[EventDate "2018.09.08"]
[EventType "team-tourn"]
[EventCountry "CRO"]
[SourceTitle "playchess.com"]
[Source "ChessBase"]
[SourceQuality "1"]
[TimeControl "40/5400+30:1800+30"]

1. e4 {[%emt 0:00:30]} c5 {[%emt 0:00:30]} 2. Nf3 {[%emt 0:00:00]} e6 {[%emt 0:00:00]} 3. c4 {[%emt 0:00:00]} a6 {[%emt 0:00:00]} 4. Nc3 {[%emt 0:01:30]} Qc7 {[%emt 0:00:30]} 5. d4 {[%emt 0:00:30]} cxd4 {[%emt 0:00:30]} 6. Nxd4 {[%emt 0:00:30]} Nf6 {[%emt 0:00:00]} 7. f3 {[%emt 0:02:30]} Be7 {[%emt 0:08:00]} 8. Be2 {[%emt 0:00:30]} d6 {[%emt 0:02:30]} 9. Be3 {[%emt 0:00:30]} Nbd7 {[%emt 0:00:30]} 10. O-O {[%emt 0:01:30]} b6 {[%emt 0:03:30]} 11. a4 {[%emt 0:03:30]} Bb7 {[%emt 0:03:30]} 12. a5 {[%emt 0:01:30]} O-O {[%emt 0:05:30]} 13. Nb3 {[%emt 0:10:30]} Rad8 {[%emt 0:06:30]} 14. Qe1 {[%emt 0:08:30]} d5 {[%emt 0:05:30]} 15. cxd5 {[%emt 0:12:30]} exd5 {[%emt 0:00:30]} 16. axb6 {[%emt 0:03:30]} Nxb6 {[%emt 0:01:30]} 17. Rc1 {[%emt 0:00:00]} Qd6 {[%emt 0:18:30]} 18. e5 {[%emt 0:08:00]} Qe6 {[%emt 0:00:00]} 19. f4 {[%emt 0:09:30]} Ne4 {[%emt 0:07:00]} 20. f5 {[%emt 0:06:30]} Qxe5 {[%emt 0:02:30]} 21. Bxb6 {[%emt 0:00:00]} Bd6 {[%emt 0:00:30]} 22. g3 {[%emt 0:01:00]} Rde8 {[%emt 0:00:30]} 23. Bd4 {[%emt 0:03:30]} Qe7 {[%emt 0:00:30]} 24. Bf3 {[%emt 0:02:30]} Qg5 {[%emt 0:01:30]} 25. Nxe4 {[%emt 0:00:30]} dxe4 {[%emt 0:00:30]} 26. Bg2 {[%emt 0:00:30]} Bd5 {[%emt 0:01:30]} 27. Nc5 {[%emt 0:01:30]} Qe7 {[%emt 0:00:30]} 28. b4 {[%emt 0:00:30]} Rc8 {[%emt 0:00:30]} 29. f6 {[%emt 0:00:30]} Qa7 {[%emt 0:02:30]} 30. Ne6 {[%emt 0:02:30]} 1-0

[Event "27th CRO-chT Women 2018"]
[Site "Biograd"]
[Date "2018.09.12"]
[Round "6.3"]
[White "Kuhar, Larisa"]
[Black "Ljikar, Tamara"]
[Result "1-0"]
[ECO "B43"]
[WhiteElo "1912"]
[BlackElo "1920"]
[Annotator "NA"]
[PlyCount "35"]
[EventDate "2018.09.08"]
[EventType "team-tourn"]
[EventCountry "CRO"]
[SourceTitle "playchess.com"]
[Source "ChessBase"]
[SourceQuality "1"]
[TimeControl "40/5400+30:1800+30"]

1. e4 {[%emt 0:00:30]} c5 {[%emt 0:00:30]} 2. Nf3 {[%emt 0:00:00]} e6 {[%emt 0:00:00]} 3. d4 {[%emt 0:00:00]} cxd4 {[%emt 0:00:00]} 4. Nxd4 {[%emt 0:00:30]} a6 {[%emt 0:01:30]} 5. Be2 {[%emt 0:00:00]} Qc7 {[%emt 0:00:00]} 6. O-O {[%emt 0:00:00]} Nf6 {[%emt 0:01:00]} 7. Nc3 {[%emt 0:00:30]} b5 {[%emt 0:00:30]} 8. Bf3 {[%emt 0:07:30]} Bb7 {[%emt 0:07:30]} 9. e5 {[%emt 0:02:30]} b4 {[%emt 0:02:30]} 10. exf6 {[%emt 0:16:30]} bxc3 {[%emt 0:03:30]} 11. fxg7 {[%emt 0:01:30]} Bxg7 {[%emt 0:00:30]} 12. bxc3 {[%emt 0:02:30]} O-O {[%emt 0:23:30]} 13. Bxb7 {[%emt 0:08:30]} Qxb7 {[%emt 0:00:00]} 14. Re1 {[%emt 0:01:30]} Kh8 {[%emt 0:14:00]} 15. Re3 {[%emt 0:03:30]} Rg8 {[%emt 0:01:30]} 16. Rg3 {[%emt 0:00:30]} Nc6 {[%emt 0:06:30]} 17. Rh3 {[%emt 0:04:30]} Bf6 {[%emt 0:07:30]} 18. Rxh7+ {[%emt 0:01:30]} 1-0

[Event "27th CRO-chT Women 2018"]
[Site "Biograd"]
[Date "2018.09.12"]
[Round "6.4"]
[White "Blazeka, Ivana"]
[Black "Dejanovic, Tereza"]
[Result "0-1"]
[ECO "B49"]
[WhiteElo "1610"]
[BlackElo "1815"]
[Annotator "NA"]
[PlyCount "56"]
[EventDate "2018.09.08"]
[EventType "team-tourn"]
[EventCountry "CRO"]
[SourceTitle "playchess.com"]
[Source "ChessBase"]
[SourceQuality "1"]
[TimeControl "40/5400+30:1800+30"]

1. e4 {[%emt 0:00:30]} c5 {[%emt 0:00:30]} 2. Nf3 {[%emt 0:00:00]} d6 {[%emt 0:00:00]} 3. d4 {[%emt 0:00:00]} cxd4 {[%emt 0:00:00]} 4. Nxd4 {[%emt 0:00:30]} Nf6 {[%emt 0:00:00]} 5. Nc3 {[%emt 0:00:30]} a6 {[%emt 0:00:00]} 6. Be2 {[%emt 0:01:30]} e6 {[%emt 0:00:30]} 7. Be3 {[%emt 0:00:30]} Be7 {[%emt 0:00:00]} 8. O-O {[%emt 0:00:30]} O-O {[%emt 0:00:00]} 9. Nb3 {[%emt 0:07:30]} Nc6 {[%emt 0:01:30]} 10. f4 {[%emt 0:00:30]} b5 {[%emt 0:04:30]} 11. a3 {[%emt 0:01:30]} Bb7 {[%emt 0:00:00]} 12. Qe1 {[%emt 0:06:30]} Qc7 {[%emt 0:03:00]} 13. Qf2 {[%emt 0:03:30]} Rac8 {[%emt 0:07:30]} 14. Bb6 {[%emt 0:03:30]} Qb8 {[%emt 0:00:30]} 15. Bf3 {[%emt 0:04:30]} Nd7 {[%emt 0:02:30]} 16. Be3 {[%emt 0:04:30]} Bf6 {[%emt 0:00:30]} 17. Nd4 {[%emt 0:02:30]} Na5 {[%emt 0:07:30]} 18. Nde2 {[%emt 0:22:30]} Nc4 {[%emt 0:04:30]} 19. Bc1 {[%emt 0:10:30]} Nc5 {[%emt 0:20:30]} 20. b4 {[%emt 0:12:24]} Nxe4 {[%emt 0:09:30]} 21. Bxe4 {[%emt 0:04:32]} Bxe4 {[%emt 0:00:00]} 22. Ra2 {[%emt 0:02:07]} Ba8 {[%emt 0:03:00]} 23. f5 {[%emt 0:02:44]} Qb7 {[%emt 0:02:30]} 24. fxe6 {[%emt 0:00:45]} fxe6 {[%emt 0:01:30]} 25. Qg3 {[%emt 0:00:08]} Bxc3 {[%emt 0:06:30]} 26. Nxc3 {[%emt 0:00:51]} Rxf1+ {[%emt 0:00:30]} 27. Kxf1 {[%emt 0:00:12]} Rf8+ {[%emt 0:00:00]} 28. Kg1 {[%emt 0:00:09]} Qb6+ {[%emt 0:00:00]} 0-1

[Event "27th CRO-chT Women 2018"]
[Site "Biograd"]
[Date "2018.09.12"]
[Round "6.5"]
[White "Repkova, Eva"]
[Black "Krivec, Jana"]
[Result "1/2-1/2"]
[ECO "C55"]
[WhiteElo "2288"]
[BlackElo "2185"]
[Annotator "NA"]
[PlyCount "41"]
[EventDate "2018.09.08"]
[EventType "team-tourn"]
[EventCountry "CRO"]
[SourceTitle "playchess.com"]
[Source "ChessBase"]
[SourceQuality "1"]
[TimeControl "40/5400+30:1800+30"]

1. e4 {[%emt 0:00:30]} e5 {[%emt 0:00:30]} 2. Bc4 {[%emt 0:00:00]} Nf6 {[%emt 0:00:00]} 3. d3 {[%emt 0:00:00]} Be7 {[%emt 0:01:00]} 4. Nf3 {[%emt 0:00:30]} Nc6 {[%emt 0:00:30]} 5. O-O {[%emt 0:00:00]} O-O {[%emt 0:00:30]} 6. Bb3 {[%emt 0:00:00]} d6 {[%emt 0:00:30]} 7. c3 {[%emt 0:00:30]} h6 {[%emt 0:00:00]} 8. Nbd2 {[%emt 0:00:30]} Nh7 {[%emt 0:01:00]} 9. d4 {[%emt 0:00:30]} Ng5 {[%emt 0:04:30]} 10. dxe5 {[%emt 0:00:30]} dxe5 {[%emt 0:02:30]} 11. Nxg5 {[%emt 0:04:30]} Bxg5 {[%emt 0:00:30]} 12. Nc4 {[%emt 0:00:30]} Bxc1 {[%emt 0:00:30]} 13. Rxc1 {[%emt 0:00:30]} Qg5 {[%emt 0:01:30]} 14. Qf3 {[%emt 0:01:30]} Be6 {[%emt 0:01:30]} 15. Qg3 {[%emt 0:00:30]} Rfd8 {[%emt 0:02:30]} 16. Qxg5 {[%emt 0:01:30]} hxg5 {[%emt 0:00:00]} 17. Rfd1 {[%emt 0:00:30]} Kf8 {[%emt 0:02:00]} 18. Kf1 {[%emt 0:00:30]} Ke8 {[%emt 0:01:30]} 19. Ke2 {[%emt 0:00:30]} Rxd1 {[%emt 0:00:30]} 20. Rxd1 {[%emt 0:00:30]} Rd8 {[%emt 0:00:30]} 21. Rxd8+ {[%emt 0:01:30]} 1/2-1/2

[Event "27th CRO-chT Women 2018"]
[Site "Biograd"]
[Date "2018.09.12"]
[Round "6.7"]
[White "Roklicer, Heike"]
[Black "Starcevic, Andrea"]
[Result "1-0"]
[ECO "D45"]
[WhiteElo "2042"]
[BlackElo "1893"]
[Annotator "NA"]
[PlyCount "121"]
[EventDate "2018.09.08"]
[EventType "team-tourn"]
[EventCountry "CRO"]
[SourceTitle "playchess.com"]
[Source "ChessBase"]
[SourceQuality "1"]
[TimeControl "40/5400+30:1800+30"]

1. d4 {[%emt 0:00:30]} d5 {[%emt 0:00:30]} 2. c4 {[%emt 0:00:30]} e6 {[%emt 0:00:00]} 3. Nc3 {[%emt 0:00:00]} Nf6 {[%emt 0:00:00]} 4. Nf3 {[%emt 0:00:00]} Be7 {[%emt 0:00:00]} 5. Qc2 {[%emt 0:00:30]} c6 {[%emt 0:01:00]} 6. e3 {[%emt 0:00:00]} Nbd7 {[%emt 0:00:30]} 7. Bd3 {[%emt 0:01:00]} dxc4 {[%emt 0:09:30]} 8. Bxc4 {[%emt 0:00:00]} b5 {[%emt 0:01:30]} 9. Bd3 {[%emt 0:02:00]} Bb7 {[%emt 0:00:30]} 10. e4 {[%emt 0:17:30] D45: Semi-Slav: 5 e3} (10. a3 a5 11. O-O Rc8 12. Rd1 O-O 13. Qe2 b4 14. Na4 c5 15. dxc5 Qc7 16. axb4 axb4 17. Bd2 Nxc5 18. Bxb4 Nxd3 19. Bxe7 Qxe7 20. Qxd3 Bxf3 21. gxf3 {½-½ (30) Yilmaz,M (2603)-Vallejo Pons,F (2700) Gjakova 2016}) 10... h6 {[%emt 0:09:30]} 11. e5 {[%emt 0:05:30]} Nd5 {[%emt 0:00:30]} 12. Nxd5 {[%emt 0:02:30]} cxd5 {[%emt 0:02:30]} 13. O-O {[%emt 0:00:30]} a6 {[%emt 0:01:30]} 14. Qe2 {[%emt 0:01:30]} Nb6 {[%emt 0:05:30]} 15. b3 {[%emt 0:02:30]} Rc8 $146 {[%emt 0:07:30]} 16. Bd2 {[%emt 0:04:30]} Ba3 {[%emt 0:12:30]} 17. Ba5 {[%emt 0:09:30]} Rc6 {[%emt 0:00:30]} 18. Rab1 {[%emt 0:07:30]} Qe7 {[%emt 0:03:30]} 19. Qd2 {[%emt 0:02:30]} b4 {[%emt 0:19:30]} 20. Ne1 {[%emt 0:02:30]} O-O {[%emt 0:00:00]} 21. Nc2 {[%emt 0:06:30]} Rfc8 {[%emt 0:01:00]} 22. Nxb4 {[%emt 0:01:30]} Bxb4 {[%emt 0:00:30]} 23. Bxb4 {[%emt 0:00:30]} Qh4 {[%emt 0:02:30]} 24. Qe3 {[%emt 0:07:30]} Nd7 {[%emt 0:00:30]} 25. f4 {[%emt 0:03:30]} Nf8 {[%emt 0:04:04]} 26. Bc5 {[%emt 0:00:30]} Nd7 {[%emt 0:00:54]} 27. b4 {[%emt 0:00:30]} R6c7 {[%emt 0:04:49]} 28. Rbc1 {[%emt 0:04:56]} Ra8 {[%emt 0:07:05]} 29. Bd6 {[%emt 0:00:54]} Rc6 {[%emt 0:00:58]} 30. Rxc6 {[%emt 0:04:28]} Bxc6 {[%emt 0:00:05]} 31. Rc1 {[%emt 0:01:25]} Bb5 {[%emt 0:01:02]} 32. g3 {[%emt 0:03:14]} Qg4 {[%emt 0:00:45]} 33. Bc5 {[%emt 0:02:33]} Qh5 {[%emt 0:02:03]} 34. a3 {[%emt 0:01:03]} Qg4 {[%emt 0:01:13]} 35. Kg2 {[%emt 0:00:16]} Bxd3 {[%emt 0:01:35]} 36. Qxd3 {[%emt 0:00:02]} h5 {[%emt 0:00:25]} 37. a4 {[%emt 0:04:27]} h4 {[%emt 0:00:44]} 38. h3 {[%emt 0:00:00]} Qxg3+ {[%emt 0:00:38]} 39. Qxg3 {[%emt 0:00:00]} hxg3 {[%emt 0:00:48]} 40. Kxg3 {[%emt 0:00:00]} Rb8 {[%emt 0:00:00]} 41. Bd6 {[%emt 0:03:42]} Ra8 {[%emt 0:05:22]} 42. Rc6 {[%emt 0:02:30]} Kh7 {[%emt 0:01:30]} 43. Rc7 {[%emt 0:03:30]} Nb6 {[%emt 0:01:30]} 44. a5 {[%emt 0:00:30]} Nc4 {[%emt 0:00:30]} 45. Rxf7 {[%emt 0:00:30]} Ne3 {[%emt 0:01:30]} 46. Bc5 {[%emt 0:03:30]} Kg6 {[%emt 0:02:30]} 47. Rc7 {[%emt 0:01:30]} Nf5+ {[%emt 0:00:30]} 48. Kf2 {[%emt 0:06:08]} Rh8 {[%emt 0:02:30]} 49. Rc6 {[%emt 0:01:03]} Rxh3 {[%emt 0:00:30]} 50. Rxe6+ {[%emt 0:00:24]} Kh5 {[%emt 0:00:00]} 51. Rxa6 $2 {[%emt 0:00:33]} ({White has to play} 51. Ke2 $18) 51... Kg4 $2 {[%emt 0:00:00]} (51... Rh2+ $14 52. Kf3 Rc2) 52. Rg6+ {[%emt 0:01:40]} Kxf4 {[%emt 0:00:30]} 53. Ke2 {[%emt 0:04:49]} Re3+ {[%emt 0:04:34]} 54. Kd2 {[%emt 0:00:41]} Ke4 {[%emt 0:05:22]} 55. Kc2 {[%emt 0:00:58]} Rd3 {[%emt 0:00:57]} 56. Rg4+ {[%emt 0:04:04]} Ke3 {[%emt 0:00:19]} 57. e6 {[%emt 0:01:06]} Rd2+ {[%emt 0:04:21]} 58. Kb3 {[%emt 0:00:15]} Kf3 $18 {[%emt 0:04:28]} 59. Rg5 {[%emt 0:01:12]} Nxd4+ {[%emt 0:00:43]} 60. Bxd4 {[%emt 0:00:30]} Rxd4 {[%emt 0:00:01]} 61. Re5 {[%emt 0:03:16]} 1-0

[Event "27th CRO-chT Women 2018"]
[Site "Biograd"]
[Date "2018.09.12"]
[Round "6.8"]
[White "Tomulic, Vesna"]
[Black "Smetisko, Marija"]
[Result "1/2-1/2"]
[ECO "C54"]
[WhiteElo "1837"]
[BlackElo "1900"]
[Annotator "NA"]
[PlyCount "97"]
[EventDate "2018.09.08"]
[EventType "team-tourn"]
[EventCountry "CRO"]
[SourceTitle "playchess.com"]
[Source "ChessBase"]
[SourceQuality "1"]
[TimeControl "40/5400+30:1800+30"]

1. e4 {[%emt 0:01:30]} e5 {[%emt 0:00:30]} 2. Nf3 {[%emt 0:00:00]} Nc6 {[%emt 0:00:00]} 3. Bc4 {[%emt 0:00:00]} Bc5 {[%emt 0:00:00]} 4. c3 {[%emt 0:00:30]} Nf6 {[%emt 0:00:00]} 5. d4 {[%emt 0:00:30]} exd4 {[%emt 0:00:00]} 6. cxd4 {[%emt 0:00:00]} Bb4+ {[%emt 0:00:30]} 7. Bd2 {[%emt 0:01:00]} Bxd2+ {[%emt 0:00:00]} 8. Nbxd2 {[%emt 0:00:00]} d5 {[%emt 0:00:00]} 9. exd5 {[%emt 0:03:00]} Nxd5 {[%emt 0:00:30]} 10. Qb3 {[%emt 0:07:30]} Nce7 {[%emt 0:00:30]} 11. O-O {[%emt 0:05:30]} O-O {[%emt 0:00:00]} 12. Rfe1 {[%emt 0:03:30]} c6 {[%emt 0:01:00]} 13. Ne4 {[%emt 0:04:30]} Qb6 {[%emt 0:05:30]} 14. Qxb6 {[%emt 0:11:30]} axb6 {[%emt 0:00:00]} 15. Nd6 {[%emt 0:01:30]} Ra7 {[%emt 0:18:00]} 16. Nxc8 {[%emt 0:02:30]} Rxc8 {[%emt 0:00:30]} 17. Re2 {[%emt 0:09:30]} Kf8 {[%emt 0:04:30]} 18. Rae1 {[%emt 0:00:30]} f6 {[%emt 0:03:30]} 19. Re4 {[%emt 0:10:30]} Rd8 {[%emt 0:05:30]} 20. Rh4 {[%emt 0:08:30]} h6 {[%emt 0:03:30]} 21. Rhe4 {[%emt 0:00:30]} Rd7 {[%emt 0:10:30]} 22. Nh4 {[%emt 0:04:30]} Ra8 {[%emt 0:03:30]} 23. f4 {[%emt 0:02:30]} b5 {[%emt 0:10:30]} 24. Bb3 {[%emt 0:04:16]} f5 {[%emt 0:14:41]} 25. Re5 {[%emt 0:05:33]} Nxf4 {[%emt 0:04:46]} 26. Nxf5 {[%emt 0:00:45]} Nfd5 {[%emt 0:03:20]} 27. Nxe7 {[%emt 0:01:56]} Rxe7 {[%emt 0:01:52]} 28. Bxd5 {[%emt 0:02:14]} Rxe5 {[%emt 0:01:27]} 29. Rxe5 {[%emt 0:02:38]} cxd5 {[%emt 0:00:06]} 30. Rxd5 {[%emt 0:00:09]} Ra5 {[%emt 0:08:10]} 31. Kf2 {[%emt 0:01:48]} Ke7 {[%emt 0:00:28]} 32. Ke3 {[%emt 0:01:04]} b6 {[%emt 0:01:12]} 33. Kd3 {[%emt 0:01:45]} Ke6 {[%emt 0:00:58]} 34. Re5+ {[%emt 0:00:36]} Kd6 {[%emt 0:00:13]} 35. a3 {[%emt 0:00:39]} Kc6 {[%emt 0:00:25]} 36. Re7 {[%emt 0:01:08]} b4 {[%emt 0:00:46]} 37. axb4 {[%emt 0:00:21]} Rg5 {[%emt 0:00:09]} 38. Re6+ {[%emt 0:01:20]} Kd7 {[%emt 0:00:42]} 39. Rxb6 {[%emt 0:00:48]} Rxg2 {[%emt 0:00:11]} 40. Kc3 {[%emt 0:00:00]} Kc7 {[%emt 0:00:00]} 41. Re6 {[%emt 0:02:00]} h5 {[%emt 0:04:34]} 42. b5 {[%emt 0:00:30]} h4 {[%emt 0:00:30]} 43. Re4 {[%emt 0:09:30]} h3 {[%emt 0:00:30]} 44. Rh4 {[%emt 0:00:30]} Rxh2 {[%emt 0:01:30]} 45. Rh7 {[%emt 0:00:30]} Kb6 {[%emt 0:00:30]} 46. Rxg7 {[%emt 0:00:30]} Kxb5 {[%emt 0:02:30]} 47. Rh7 {[%emt 0:03:36]} Rh1 {[%emt 0:01:30]} 48. Rh5+ {[%emt 0:01:53]} Kc6 {[%emt 0:00:30]} 49. Kc2 {[%emt 0:02:20]} 1/2-1/2

[Event "27th CRO-chT Women 2018"]
[Site "Biograd"]
[Date "2018.09.12"]
[Round "6.9"]
[White "Videkovic, Marina"]
[Black "Videnova, Iva"]
[Result "0-1"]
[ECO "A49"]
[WhiteElo "1833"]
[BlackElo "2336"]
[Annotator "NA"]
[PlyCount "90"]
[EventDate "2018.09.08"]
[EventType "team-tourn"]
[EventCountry "CRO"]
[SourceTitle "playchess.com"]
[Source "ChessBase"]
[SourceQuality "1"]
[TimeControl "40/5400+30:1800+30"]

1. d4 {[%emt 0:00:30]} Nf6 {[%emt 0:00:30]} 2. Nf3 {[%emt 0:00:00]} g6 {[%emt 0:01:30]} 3. g3 {[%emt 0:00:00]} Bg7 {[%emt 0:00:00]} 4. Bg2 {[%emt 0:00:30]} c5 {[%emt 0:00:00]} 5. c3 {[%emt 0:02:30]} Na6 {[%emt 0:02:30]} 6. O-O {[%emt 0:01:30]} O-O {[%emt 0:00:00]} 7. Re1 {[%emt 0:07:30]} d5 {[%emt 0:00:00]} 8. Na3 {[%emt 0:04:30]} Bf5 {[%emt 0:03:30]} 9. Nh4 {[%emt 0:07:30]} Be6 {[%emt 0:01:30]} 10. Nc2 {[%emt 0:03:30]} Rc8 {[%emt 0:01:30]} 11. Nf3 {[%emt 0:09:30]} Bf5 {[%emt 0:01:30]} 12. e3 {[%emt 0:03:30]} c4 {[%emt 0:04:30]} 13. Ne5 {[%emt 0:03:30]} h5 {[%emt 0:06:30]} 14. h3 {[%emt 0:08:30]} Nd7 {[%emt 0:02:30]} 15. Nxd7 {[%emt 0:05:30]} Qxd7 {[%emt 0:00:30]} 16. Kh2 {[%emt 0:00:00]} Rfd8 {[%emt 0:03:30]} 17. a4 {[%emt 0:04:00]} Nb8 {[%emt 0:02:30]} 18. Nb4 {[%emt 0:01:30]} Be6 {[%emt 0:00:30]} 19. e4 {[%emt 0:06:30]} dxe4 {[%emt 0:00:00]} 20. Rxe4 {[%emt 0:00:30]} a5 {[%emt 0:01:00]} 21. Nc2 {[%emt 0:01:30]} Nc6 {[%emt 0:02:30]} 22. Bf4 {[%emt 0:03:30]} Bd5 {[%emt 0:01:30]} 23. Re1 {[%emt 0:00:30]} Bxg2 {[%emt 0:00:30]} 24. Kxg2 {[%emt 0:00:00]} Bf6 {[%emt 0:00:30]} 25. Qe2 {[%emt 0:04:00]} e6 {[%emt 0:06:30]} 26. Qf3 {[%emt 0:05:38]} Ne7 {[%emt 0:11:30]} 27. Be5 {[%emt 0:05:38]} Bg7 {[%emt 0:03:30]} 28. Bxg7 {[%emt 0:01:19]} Kxg7 {[%emt 0:00:00]} 29. Qe4 {[%emt 0:01:56]} Qd5 {[%emt 0:03:00]} 30. f3 {[%emt 0:00:57]} Rc6 {[%emt 0:06:30]} 31. Na3 {[%emt 0:01:33]} Nf5 {[%emt 0:02:30]} 32. Re2 {[%emt 0:02:07]} h4 {[%emt 0:06:30]} 33. Qxd5 {[%emt 0:02:13]} Rxd5 {[%emt 0:01:30]} 34. g4 {[%emt 0:00:06]} Ne7 {[%emt 0:00:30]} 35. Rc1 {[%emt 0:03:22]} g5 {[%emt 0:00:30]} 36. Rce1 {[%emt 0:00:22]} Ng6 {[%emt 0:00:30]} 37. Kh2 {[%emt 0:01:09]} Kf6 {[%emt 0:00:30]} 38. Nb5 {[%emt 0:00:49]} Nf4 {[%emt 0:05:30]} 39. Re4 {[%emt 0:00:11]} Rb6 {[%emt 0:01:52]} 40. R1e3 {[%emt 0:00:00]} Rbxb5 {[%emt 0:00:00]} 41. axb5 {[%emt 0:03:40]} Rxb5 {[%emt 0:06:38]} 42. Rxf4+ {[%emt 0:03:30]} gxf4 {[%emt 0:00:30]} 43. Re2 {[%emt 0:00:30]} Rb3 {[%emt 0:03:30]} 44. Kg1 {[%emt 0:00:30]} b5 {[%emt 0:01:30]} 45. Kf2 {[%emt 0:00:30]} b4 {[%emt 0:00:30]} 0-1

[Event "27th CRO-chT Women 2018"]
[Site "Biograd"]
[Date "2018.09.12"]
[Round "6.10"]
[White "Ivekovic, Tihana"]
[Black "Grgic, Neomi"]
[Result "1-0"]
[ECO "E06"]
[WhiteElo "2114"]
[BlackElo "1851"]
[Annotator "NA"]
[PlyCount "69"]
[EventDate "2018.09.08"]
[EventType "team-tourn"]
[EventCountry "CRO"]
[SourceTitle "playchess.com"]
[Source "ChessBase"]
[SourceQuality "1"]
[TimeControl "40/5400+30:1800+30"]

1. d4 {[%emt 0:00:30]} Nf6 {[%emt 0:00:30]} 2. c4 {[%emt 0:00:00]} e6 {[%emt 0:00:00]} 3. g3 {[%emt 0:00:00]} Be7 {[%emt 0:00:00]} 4. Bg2 {[%emt 0:00:00]} d5 {[%emt 0:01:30]} 5. Nf3 {[%emt 0:00:00]} O-O {[%emt 0:00:30]} 6. O-O {[%emt 0:00:00]} c6 {[%emt 0:03:30]} 7. Nbd2 {[%emt 0:00:00]} b6 {[%emt 0:02:30]} 8. Qc2 {[%emt 0:00:30]} Bb7 {[%emt 0:06:30]} 9. Rd1 {[%emt 0:00:30]} Na6 {[%emt 0:06:30]} 10. e4 {[%emt 0:08:30]} Nb4 {[%emt 0:04:30]} 11. Qb1 {[%emt 0:01:30]} dxc4 {[%emt 0:09:30]} 12. e5 {[%emt 0:13:30]} Nfd5 {[%emt 0:13:30]} 13. Nxc4 {[%emt 0:06:30]} Ba6 {[%emt 0:02:30]} 14. Bf1 {[%emt 0:03:30]} c5 {[%emt 0:11:30]} 15. a3 {[%emt 0:02:30]} Nc6 {[%emt 0:00:00]} 16. Qe4 {[%emt 0:01:30]} Nxd4 {[%emt 0:08:00]} 17. Nxd4 {[%emt 0:00:30]} cxd4 {[%emt 0:00:30]} 18. Qxd4 {[%emt 0:00:30]} Qc7 {[%emt 0:03:30]} 19. Bd3 {[%emt 0:26:30]} Bxc4 {[%emt 0:05:04]} 20. Bxc4 {[%emt 0:00:30]} Rad8 {[%emt 0:07:18]} 21. Bd2 {[%emt 0:02:30]} Bc5 {[%emt 0:04:14]} 22. Qe4 {[%emt 0:00:00]} Ne7 {[%emt 0:00:08]} 23. Bc3 {[%emt 0:02:00]} Rxd1+ {[%emt 0:01:27]} 24. Rxd1 {[%emt 0:00:00]} Rd8 {[%emt 0:00:07]} 25. Rxd8+ {[%emt 0:01:00]} Qxd8 {[%emt 0:00:00]} 26. b4 {[%emt 0:00:30]} Nd5 {[%emt 0:00:58]} 27. bxc5 {[%emt 0:10:30]} Nxc3 {[%emt 0:00:10]} 28. Qf3 {[%emt 0:00:30]} Na4 {[%emt 0:05:15]} 29. c6 {[%emt 0:03:10]} Nc5 {[%emt 0:01:37]} 30. c7 {[%emt 0:00:30]} Qc8 {[%emt 0:01:18]} 31. Qc6 {[%emt 0:01:58]} Kf8 {[%emt 0:01:48]} 32. Qd6+ {[%emt 0:00:04]} Ke8 {[%emt 0:00:05]} 33. Bb5+ {[%emt 0:00:04]} Nd7 {[%emt 0:00:04]} 34. Qxd7+ {[%emt 0:00:06]} Qxd7 {[%emt 0:00:00]} 35. c8=Q+ {[%emt 0:00:05]} 1-0